bitfinex-derivatives/quotes_BTCF0:USTF0_20260131
["timestamp","ask_amount","ask_price","bid_price","bid_amount"]
[1769901350016,0.1928371,78216.0,78156.0,0.2003898]
[1769901350318,0.26655027,78210.0,78195.0,0.2003898]
[1769901350513,0.26655027,78210.0,78197.0,0.2003898]
[1769901350713,0.26655027,78210.0,78199.0,0.2003898]
[1769901351113,0.1928371,78231.0,78199.0,0.2003898]
[1769901351321,0.012791,78275.0,78199.0,0.2003898]
[1769901351322,0.26655027,78240.0,78221.0,0.13075229]
[1769901351622,0.26655027,78240.0,78226.0,0.012799]
[1769901351815,0.26655027,78240.0,78227.0,0.4408]
[1769901352216,5.332e-05,78239.0,78227.0,0.4408]
[1769901352418,0.20539642,78239.0,78227.0,0.4408]
[1769901353218,0.20539642,78239.0,78227.0,0.45428181]
[1769901354020,5.332e-05,78239.0,78227.0,0.45428181]
[1769901355118,0.210174,78253.0,78230.0,0.15398898]
[1769901355119,0.26655027,78250.0,78230.0,0.15398898]
[1769901355419,0.26655027,78250.0,78235.0,0.012797]
[1769901355619,0.26655027,78250.0,78236.0,0.45596]
[1769901356022,0.26655027,78260.0,78246.0,0.012796]
[1769901356224,0.26655027,78260.0,78247.0,0.45604]
[1769901356930,0.26655027,78260.0,78252.0,0.012795]
[1769901357120,0.26655027,78280.0,78255.0,0.17665673]
[1769901357322,0.26655027,78280.0,78260.0,0.17665673]
[1769901357519,0.2665507,78279.0,78261.0,0.64917583]
[1769901357722,0.2665507,78279.0,78262.0,0.35264]
[1769901358617,0.26655027,78280.0,78262.0,0.5658228]
[1769901358817,0.26655027,78280.0,78264.0,0.2131828]
[1769901359319,0.26655027,78280.0,78269.0,0.2003898]
[1769901359523,0.26655027,78280.0,78271.0,0.2003898]
[1769901359822,0.26655027,78280.0,78272.0,0.35288]
[1769901360018,0.21312383,78296.0,78275.0,0.012791]
[1769901360223,0.26655027,78290.0,78275.0,0.012791]
[1769901360424,0.2665507,78289.0,78275.0,0.012791]
[1769901360620,0.2665507,78289.0,78272.0,0.35288]
[1769901361224,0.21547204,78286.0,78244.0,0.2003898]
[1769901361524,0.2161509,78269.0,78245.0,0.56834573]
[1769901362028,0.2161509,78267.0,78245.0,0.4406]
[1769901362222,0.26655027,78260.0,78245.0,0.4406]
[1769901363922,0.21562319,78259.0,78245.0,0.4406]
[1769901364225,0.2665507,78259.0,78245.0,0.4406]
[1769901364618,0.26655027,78270.0,78247.0,0.2003898]
[1769901364823,0.2665507,78269.0,78249.0,0.012795]
[1769901366825,0.2665507,78269.0,78251.0,0.012795]
[1769901367025,0.2665507,78269.0,78258.0,0.012794]
[1769901367226,0.2665507,78269.0,78259.0,0.45812]
[1769901367827,0.012785,78313.0,78269.0,0.012792]
[1769901367828,0.27641271,78291.0,78269.0,0.012792]
[1769901368025,0.27641271,78291.0,78271.0,0.012792]
[1769901368227,0.27641271,78291.0,78272.0,0.44052]
[1769901368527,0.27641271,78295.0,78273.0,0.012791]
[1769901368926,0.27641271,78302.0,78281.0,0.01279]
[1769901369120,0.27641271,78302.0,78283.0,0.01279]
[1769901369320,0.27641271,78302.0,78284.0,0.33692]
[1769901369820,0.1036,78305.0,78284.0,0.33692]
[1769901370026,0.27641271,78319.0,78298.0,0.012787]
[1769901370324,0.27641271,78327.0,78306.0,0.012786]
[1769901370517,0.27641271,78327.0,78300.0,0.26396414]
[1769901370518,0.1036,78333.0,78307.0,0.44048]
[1769901370833,0.1036,78333.0,78311.0,0.012785]
[1769901371032,0.27641271,78328.0,78307.0,0.44048]
[1769901371223,0.27641271,78323.0,78307.0,0.44048]
[1769901371529,0.27641271,78332.0,78315.0,0.012784]
[1769901371717,0.27641271,78332.0,78316.0,0.44048]
[1769901372429,0.27641271,78341.0,78316.0,0.453264]
[1769901372727,0.01278,78340.0,78316.0,0.453264]
[1769901372921,0.27641271,78337.0,78316.0,0.44048]
[1769901373119,0.27641271,78335.0,78316.0,0.44048]
[1769901373718,0.27641271,78334.0,78316.0,0.44048]
[1769901374124,0.27641271,78334.0,78317.0,0.10356]
[1769901375023,0.27641271,78329.0,78314.0,0.3368]
[1769901375223,0.28919571,78325.0,78315.0,0.10356]
[1769901375528,0.28919571,78325.0,78313.0,0.10356]
[1769901376022,0.27641271,78325.0,78291.0,0.41432]
[1769901376225,0.27641271,78313.0,78300.0,0.10356]
[1769901377128,0.26655027,78314.0,78298.0,0.10356]
[1769901377129,0.27641271,78311.0,78298.0,0.10356]
[1769901377331,0.26655027,78308.0,78298.0,0.10356]
[1769901377626,0.27641271,78311.0,78298.0,0.10356]
[1769901378924,0.28919771,78311.0,78298.0,0.10356]
[1769901380532,0.28919771,78311.0,78289.0,0.012789]
[1769901380724,0.27641271,78308.0,78290.0,0.10356]
[1769901381032,0.27641271,78308.0,78290.0,0.44028]
[1769901381329,0.27641271,78306.0,78290.0,0.44028]
[1769901381533,0.27641271,78304.0,78290.0,0.44028]
[1769901381829,0.27641271,78302.0,78290.0,0.44028]
[1769901382129,0.27641271,78293.0,78280.0,0.10356]
[1769901382332,0.27641271,78291.0,78274.0,0.10356]
[1769901382532,0.27641271,78287.0,78274.0,0.10356]
[1769901382729,0.27641271,78290.0,78274.0,0.10356]
[1769901383025,0.27641271,78288.0,78274.0,0.10356]
[1769901383230,0.012789,78287.0,78274.0,0.10356]
[1769901384819,0.27641271,78288.0,78274.0,0.10356]
[1769901385028,0.27641271,78285.0,78266.0,0.012792]
[1769901385426,0.10356,78292.0,78264.0,0.01228368]
[1769901385427,0.012789,78290.0,78268.0,0.28353923]
[1769901385731,0.10356,78292.0,78273.0,0.012791]
[1769901386924,0.012788,78291.0,78270.0,0.012792]
[1769901387130,0.012789,78289.0,78269.0,0.35596]
[1769901387331,0.28920171,78289.0,78269.0,0.35596]
[1769901387526,0.012789,78287.0,78269.0,0.35596]
[1769901387732,0.28920171,78287.0,78269.0,0.35596]
[1769901388132,0.27641271,78287.0,78270.0,0.012792]
[1769901389031,0.27641271,78287.0,78269.0,0.35596]
[1769901389032,0.012788,78291.0,78269.0,0.368752]
[1769901389236,0.012788,78291.0,78271.0,0.012792]
[1769901389435,0.10356,78292.0,78270.0,0.27074723]
[1769901389735,0.10356,78302.0,78284.0,0.012789]
[1769901390037,0.10356,78302.0,78281.0,0.28353723]
[1769901390339,0.012787,78301.0,78281.0,0.28353723]
[1769901390534,0.012787,78299.0,78281.0,0.27074723]
[1769901390741,0.116347,78302.0,78282.0,0.01279]
[1769901391036,0.012787,78300.0,78281.0,0.10356]
[1769901391637,0.012787,78301.0,78281.0,0.10356]
[1769901391839,0.012786,78307.0,78284.0,0.27074723]
[1769901392136,0.10356,78314.0,78281.0,0.10356]
[1769901392137,0.012785,78313.0,78293.0,0.012788]
[1769901392437,0.012785,78311.0,78290.0,0.116348]
[1769901392636,0.012785,78309.0,78290.0,0.116348]
[1769901392831,0.27641271,78300.0,78281.0,0.10356]
[1769901393030,0.28919971,78300.0,78281.0,0.10356]
[1769901393836,0.28919971,78298.0,78281.0,0.10356]
[1769901394536,0.28920071,78296.0,78281.0,0.10356]
[1769901395141,0.1879828,78295.0,78281.0,0.10356]
[1769901395345,0.28920071,78296.0,78281.0,0.10356]
[1769901396238,0.18728958,78295.0,78281.0,0.10356]
[1769901396441,0.28920071,78296.0,78281.0,0.10356]
[1769901396738,0.18728967,78295.0,78281.0,0.10356]
[1769901396939,0.28920071,78296.0,78281.0,0.10356]
[1769901397141,0.18728967,78295.0,78281.0,0.10356]
[1769901397341,0.18728967,78294.0,78281.0,0.10356]
[1769901397542,0.28920071,78296.0,78281.0,0.10356]
[1769901397743,0.012788,78294.0,78281.0,0.10356]
[1769901398444,0.27749413,78303.0,78282.0,0.01279]
[1769901398644,0.012787,78298.0,78282.0,0.01279]
[1769901398944,0.18737627,78297.0,78282.0,0.01279]
[1769901399140,0.18737627,78296.0,78282.0,0.01279]
[1769901399340,0.18737627,78295.0,78282.0,0.01279]
[1769901399546,0.10356,78305.0,78289.0,0.28725749]
[1769901399749,0.10356,78305.0,78290.0,0.28725749]
[1769901400142,0.10356,78305.0,78291.0,0.28725749]
[1769901400740,0.3584,78314.0,78295.0,0.28725749]
[1769901400942,0.27749413,78329.0,78303.0,0.012786]
[1769901401142,0.012784,78319.0,78294.0,0.28725749]
[1769901401344,0.1778506,78318.0,78299.0,0.012787]
[1769901402146,0.30145092,78317.0,78295.0,0.012788]
[1769901402348,0.46651752,78316.0,78295.0,0.012788]
[1769901402546,0.012784,78317.0,78297.0,0.30547528]
[1769901402746,0.012784,78318.0,78297.0,0.29268828]
[1769901402948,0.012784,78316.0,78297.0,0.29268828]
[1769901403548,0.012784,78319.0,78297.0,0.29268828]
[1769901403750,0.1798958,78318.0,78299.0,0.29268828]
[1769901403950,0.1798958,78317.0,78300.0,0.10356]
[1769901404251,0.10356,78320.0,78301.0,0.29268828]
[1769901404449,0.10356,78320.0,78303.0,0.29268828]
[1769901406553,0.012782,78329.0,78305.0,0.29268828]
[1769901406748,0.17964094,78328.0,78309.0,0.29268828]
[1769901406949,0.10356,78330.0,78311.0,0.29268828]
[1769901407251,0.28866692,78340.0,78315.0,0.29268828]
[1769901407454,0.46714909,78339.0,78315.0,0.29268828]
[1769901407654,0.17848217,78338.0,78315.0,0.29268828]
[1769901407950,0.28866692,78339.0,78315.0,0.29268828]
[1769901408160,0.30144892,78328.0,78312.0,0.35804]
[1769901408456,0.30144992,78326.0,78312.0,0.35804]
[1769901408757,0.012783,78324.0,78312.0,0.35804]
[1769901409257,0.30144992,78322.0,78310.0,0.10356]
[1769901409459,0.30144992,78322.0,78302.0,0.35832]
[1769901409460,0.012784,78318.0,78302.0,0.46184]
[1769901409662,0.012784,78321.0,78302.0,0.46184]
[1769901409863,0.012784,78319.0,78302.0,0.46184]
[1769901411457,0.012784,78319.0,78302.0,0.474627]
[1769901412064,0.012784,78319.0,78302.0,0.46184]
[1769901412764,0.28866692,78316.0,78302.0,0.46184]
[1769901413660,0.10352,78319.0,78302.0,0.46184]
[1769901413661,0.30145092,78315.0,78302.0,0.46184]
[1769901413864,0.28866692,78315.0,78302.0,0.10352]
[1769901414167,0.30145192,78311.0,78292.0,0.116308]
[1769901414368,0.012785,78309.0,78292.0,0.10352]
[1769901414567,0.28866692,78311.0,78292.0,0.10352]
[1769901414767,0.28866692,78311.0,78293.0,0.012788]
[1769901415170,0.28866692,78311.0,78291.0,0.012788]
[1769901415871,0.28866692,78311.0,78291.0,0.30547628]
[1769901418373,0.012785,78310.0,78291.0,0.30547628]
[1769901419275,0.28866692,78318.0,78291.0,0.30547628]
[1769901419672,0.012785,78311.0,78291.0,0.30547628]
[1769901420680,0.012785,78313.0,78293.0,0.30547628]
[1769901420873,0.012785,78313.0,78294.0,0.012788]
[1769901421176,0.012785,78313.0,78294.0,0.30547628]
[1769901421578,0.35804,78329.0,78310.0,0.29268828]
[1769901421779,0.012782,78327.0,78310.0,0.29268828]
[1769901421975,0.012783,78326.0,78310.0,0.29268828]
[1769901422575,0.012783,78327.0,78310.0,0.29268828]
[1769901422778,0.012783,78323.0,78303.0,0.29268828]
[1769901423080,0.28866692,78320.0,78302.0,0.10352]
[1769901423278,0.30145092,78319.0,78302.0,0.10352]
[1769901424275,0.10352,78321.0,78305.0,0.29268828]
[1769901424483,0.10352,78330.0,78316.0,0.29268828]
[1769901424678,0.10352,78330.0,78318.0,0.29268828]
[1769901424982,0.10352,78330.0,78319.0,0.30547228]
[1769901425180,0.01278,78342.0,78321.0,0.30547128]
[1769901425480,0.10352,78348.0,78312.0,0.10352]
[1769901425481,0.01278,78345.0,78325.0,0.29268828]
[1769901427274,0.01278,78345.0,78325.0,0.30547128]
[1769901428175,0.012781,78337.0,78317.0,0.28416927]
[1769901428578,0.01278,78342.0,78318.0,0.29695327]
[1769901429681,0.31064974,78335.0,78312.0,0.10352]
[1769901429877,0.31065074,78332.0,78312.0,0.10352]
[1769901430277,0.29786874,78329.0,78312.0,0.10352]
[1769901431480,0.012782,78333.0,78313.0,0.28416927]
[1769901431880,0.012782,78331.0,78313.0,0.28416927]
[1769901432676,0.012782,78329.0,78313.0,0.28416927]
[1769901433380,0.012782,78332.0,78313.0,0.28416927]
[1769901433576,0.31065074,78328.0,78308.0,0.012785]
[1769901433776,0.29786874,78322.0,78303.0,0.10352]
[1769901433973,0.012783,78326.0,78306.0,0.012786]
[1769901434479,0.012783,78326.0,78307.0,0.28416927]
[1769901434881,0.10352,78325.0,78307.0,0.28416927]
[1769901436183,0.10352,78325.0,78314.0,0.29695427]
[1769901436383,0.10352,78331.0,78316.0,0.29695327]
[1769901436986,0.10352,78331.0,78319.0,0.28416927]
[1769901437186,0.10352,78331.0,78321.0,0.28416927]
[1769901437682,0.10352,78343.0,78324.0,0.28416927]
[1769901438275,0.10352,78343.0,78325.0,0.012783]
[1769901438472,0.012779,78346.0,78325.0,0.29695227]
[1769901438679,0.10352,78343.0,78325.0,0.28416927]
[1769901438879,0.01278,78342.0,78325.0,0.28416927]
[1769901439685,0.26540133,78335.0,78326.0,0.012783]
[1769901441185,0.26540133,78335.0,78325.0,0.28416927]
[1769901442491,0.26540133,78335.0,78321.0,0.10352]
[1769901442784,0.26540133,78335.0,78322.0,0.29695227]
[1769901443185,0.26540133,78335.0,78324.0,0.012783]
[1769901443485,0.10352,78343.0,78327.0,0.28416927]
[1769901443691,0.26540133,78340.0,78333.0,0.28416927]
[1769901444193,0.16569806,78340.0,78333.0,0.29695027]
[1769901444588,0.06213799,78340.0,78333.0,0.29695027]
[1769901444989,0.06213799,78340.0,78330.0,0.116302]
[1769901445292,0.06213799,78340.0,78330.0,0.12852674]
[1769901445591,0.06213799,78340.0,78332.0,0.012782]
[1769901446290,0.06213799,78340.0,78332.0,0.29695127]
[1769901446490,0.26540133,78350.0,78334.0,0.28416927]
[1769901446990,0.26540133,78350.0,78337.0,0.012781]
[1769901447292,0.26540133,78350.0,78337.0,0.29695027]
[1769901447881,0.26540133,78350.0,78337.0,0.012781]
[1769901448083,0.26540133,78350.0,78334.0,0.012781]
[1769901448392,0.26540133,78350.0,78336.0,0.012781]
[1769901448592,0.10352,78353.0,78338.0,0.28416927]
[1769901448993,0.10352,78353.0,78340.0,0.28416927]
[1769901449191,0.26521387,78360.0,78342.0,0.28416927]
[1769901449487,0.10352,78363.0,78349.0,0.012779]
[1769901449692,0.10352,78363.0,78349.0,0.29694827]
[1769901450794,0.26521387,78360.0,78349.0,0.28416927]
[1769901451189,0.10352,78363.0,78350.0,0.012779]
[1769901452191,0.26521387,78370.0,78352.0,0.29694727]
[1769901452389,0.26521387,78370.0,78364.0,0.012776]
[1769901452590,0.26521387,78380.0,78357.0,0.38764927]
[1769901452787,0.10348,78379.0,78358.0,0.28416927]
[1769901453189,0.10348,78379.0,78361.0,0.28416927]
[1769901454095,0.10348,78379.0,78362.0,0.29694627]
[1769901454295,0.012773,78388.0,78364.0,0.29694527]
[1769901454490,0.012773,78388.0,78367.0,0.28416927]
[1769901455191,0.40134874,78389.0,78368.0,0.012776]
[1769901455991,0.10348,78389.0,78368.0,0.29694527]
[1769901456296,0.012771,78396.0,78371.0,0.28416927]
[1769901456493,0.10348,78400.0,78375.0,0.28416927]
[1769901456698,0.10348,78400.0,78382.0,0.28416927]
[1769901456994,0.29786874,78396.0,78376.0,0.231066]
[1769901457194,0.29786874,78396.0,78376.0,0.10348]
[1769901457591,0.29786874,78396.0,78377.0,0.127586]
[1769901458093,0.2883868,78389.0,78376.0,0.10348]
[1769901459191,0.2883868,78397.0,78376.0,0.38483933]
[1769901459392,0.10343,78400.0,78379.0,0.29413333]
[1769901460196,0.012769,78408.0,78385.0,0.29413233]
[1769901460391,0.012769,78408.0,78385.0,0.39761233]
[1769901460792,0.55360067,78410.0,78386.0,0.28135933]
[1769901461098,0.55360067,78410.0,78388.0,0.012772]
[1769901461598,0.012769,78407.0,78386.0,0.28135933]
[1769901461999,0.56636967,78410.0,78387.0,0.012773]
[1769901462201,0.56636967,78410.0,78389.0,0.012772]
[1769901462400,0.56636967,78410.0,78388.0,0.012772]
[1769901462600,0.29071965,78409.0,78388.0,0.012772]
[1769901462799,0.477969,78411.0,78390.0,0.29569113]
[1769901463300,0.477969,78411.0,78390.0,0.28291913]
[1769901463998,0.012768,78417.0,78394.0,0.28291913]
[1769901464198,0.375487,78420.0,78396.0,0.29569013]
[1769901464402,0.375487,78420.0,78398.0,0.29569013]
[1769901464600,0.64070087,78420.0,78398.0,0.29569013]
[1769901465100,0.26521387,78410.0,78398.0,0.28291913]
[1769901465304,0.26521387,78410.0,78398.0,0.29513986]
[1769901466902,0.26521387,78410.0,78399.0,0.012771]
[1769901468003,0.26521387,78420.0,78411.0,0.28291913]
[1769901468205,0.26521387,78420.0,78414.0,0.29568713]
[1769901469706,0.26521387,78420.0,78414.0,0.28291913]
[1769901469907,0.26521387,78420.0,78413.0,0.10344]
[1769901472303,0.26521387,78420.0,78414.0,0.28291913]
[1769901473910,0.26521387,78420.0,78413.0,0.10344]
[1769901474505,0.012766,78430.0,78413.0,0.10344]
[1769901474703,0.26521387,78423.0,78413.0,0.10344]
[1769901476208,0.29071965,78419.0,78395.0,0.012771]
[1769901476402,0.26521387,78408.0,78397.0,0.28291913]
[1769901476604,0.25299314,78410.0,78406.0,0.01277]
[1769901476807,0.26521387,78416.0,78406.0,0.01277]
[1769901477503,0.26521387,78416.0,78406.0,0.29568913]
[1769901477698,0.012765,78436.0,78414.0,0.29568713]
[1769901477904,0.26521387,78420.0,78415.0,0.75487913]
[1769901478309,8.7e-07,78420.0,78416.0,0.29568713]
[1769901479002,8.7e-07,78420.0,78416.0,0.28291913]
[1769901480007,8.7e-07,78420.0,78406.0,0.3694]
[1769901480310,0.29072052,78420.0,78407.0,0.36948]
[1769901480507,0.29071965,78419.0,78407.0,0.36948]
[1769901481106,0.29071965,78419.0,78404.0,0.1034]
[1769901481311,0.36831207,78420.0,78401.0,0.3698]
[1769901481312,0.29071965,78414.0,78401.0,0.3698]
[1769901481506,0.26521387,78411.0,78401.0,0.3698]
[1769901481805,0.55593352,78411.0,78401.0,0.3698]
[1769901482107,0.29071965,78446.0,78403.0,0.05251775]
[1769901482313,0.26521387,78430.0,78412.0,0.06528675]
[1769901482505,0.26521387,78430.0,78417.0,0.05251775]
[1769901482704,0.26521387,78430.0,78415.0,0.012768]
[1769901482905,0.26521387,78430.0,78416.0,0.264911]
[1769901483108,0.26521387,78430.0,78412.0,0.012769]
[1769901483316,0.55593352,78430.0,78413.0,0.4734]
[1769901483511,0.30348565,78429.0,78413.0,0.4734]
[1769901483816,0.29071965,78428.0,78413.0,0.4734]
[1769901484311,0.1034,78429.0,78416.0,0.07135753]
[1769901484511,0.1034,78429.0,78417.0,0.264911]
[1769901485008,0.26521387,78440.0,78426.0,0.05858953]
[1769901485212,0.26521387,78440.0,78427.0,0.4736]
[1769901487007,0.28068067,78439.0,78413.0,0.069347]
[1769901487315,0.26521387,78423.0,78418.0,0.3706]
[1769901487513,0.26521387,78423.0,78419.0,0.3362]
[1769901488117,0.28068067,78422.0,78414.0,0.1034]
[1769901488305,0.28068067,78422.0,78411.0,0.37076]
[1769901489009,0.28068067,78420.0,78399.0,0.1034]
[1769901489218,0.26521387,78409.0,78401.0,0.37096]
[1769901489512,0.26521387,78409.0,78401.0,0.11221404]
[1769901490209,0.26521387,78409.0,78399.0,0.1034]
[1769901490411,0.28068067,78408.0,78399.0,0.09922228]
[1769901490613,0.28068067,78408.0,78388.0,0.47452]
[1769901490914,0.26521387,78398.0,78388.0,0.47452]
[1769901491214,0.26521387,78398.0,78389.0,0.264911]
[1769901491415,0.26521387,78398.0,78388.0,0.47452]
[1769901491816,0.26521387,78398.0,78388.0,0.1034]
[1769901492614,0.28068067,78397.0,78382.0,0.3714]
[1769901493515,0.28068067,78397.0,78378.0,0.1034]
[1769901493716,0.28068067,78397.0,78379.0,0.264911]
[1769901494024,0.28068067,78397.0,78379.0,0.27710184]
[1769901494321,0.28068067,78397.0,78380.0,0.264911]
[1769901495018,0.28068067,78391.0,78367.0,0.012776]
[1769901495222,0.26521387,78380.0,78371.0,0.264911]
[1769901495420,0.26521387,78380.0,78371.0,0.39248073]
[1769901495615,0.26521387,78380.0,78371.0,0.264911]
[1769901496020,0.16599159,78380.0,78371.0,0.277686]
[1769901496916,0.16599159,78380.0,78371.0,0.264911]
[1769901497523,0.44667226,78380.0,78368.0,0.0001033]
[1769901497716,0.44667226,78380.0,78368.0,0.2650143]
[1769901498319,0.44667226,78380.0,78368.0,0.0001033]
[1769901498614,0.36768,78388.0,78371.0,0.08245165]
[1769901498812,0.26521387,78390.0,78377.0,0.012774]
[1769901499821,0.26521387,78390.0,78374.0,0.012775]
[1769901500726,0.28068067,78389.0,78368.0,0.02478755]
[1769901500920,0.28068067,78389.0,78370.0,0.012775]
[1769901501325,0.26521387,78390.0,78372.0,0.08328996]
[1769901501516,0.47148,78393.0,78373.0,0.012775]
[1769901501718,0.47148,78393.0,78373.0,0.277686]
[1769901501928,0.28068067,78392.0,78368.0,0.01201155]
[1769901502224,0.28068067,78388.0,78368.0,0.01201155]
[1769901502815,0.28068067,78388.0,78369.0,0.264911]
[1769901503720,0.28068067,78380.0,78368.0,0.0001033]
[1769901503921,0.0001033,78379.0,78356.0,0.1034]
[1769901504117,0.28068067,78378.0,78358.0,0.264911]
[1769901504323,0.0001033,78379.0,78369.0,0.012776]
[1769901504522,0.28068067,78392.0,78369.0,0.012776]
[1769901504723,0.28068067,78390.0,78370.0,0.264911]
[1769901504923,0.1034,78389.0,78367.0,0.01393348]
[1769901505234,0.38408067,78389.0,78366.0,0.381087]
[1769901505530,0.28068067,78388.0,78366.0,0.754007]
[1769901506225,0.28068067,78388.0,78367.0,0.07887446]
[1769901506424,0.1034,78389.0,78368.0,0.07887446]
[1769901506625,0.28068067,78388.0,78367.0,0.12758763]
[1769901506826,0.28068067,78388.0,78366.0,0.264911]
[1769901507027,0.28068067,78388.0,78366.0,0.2791581]
[1769901507227,0.28068067,78388.0,78367.0,0.127586]
[1769901507426,0.28068067,78388.0,78366.0,0.0142471]
[1769901507722,0.28068067,78385.0,78365.0,0.10344]
[1769901507924,0.28068067,78385.0,78367.0,0.012776]
[1769901508831,0.1034,78389.0,78371.0,0.012775]
[1769901509232,0.1034,78389.0,78373.0,0.012775]
[1769901509430,0.1034,78389.0,78372.0,0.264911]
[1769901509834,0.28068067,78388.0,78372.0,0.264911]
[1769901510027,0.29345367,78388.0,78372.0,0.264911]
[1769901512433,0.29345367,78388.0,78371.0,0.374]
[1769901512730,0.28068067,78380.0,78366.0,0.01404948]
[1769901512928,0.28068067,78380.0,78365.0,0.10344]
[1769901513127,0.28068067,78379.0,78365.0,0.10344]
[1769901513435,0.28068067,78379.0,78365.0,0.11800982]
[1769901513632,0.10344,78380.0,78365.0,0.11800982]
[1769901513831,0.37176,78389.0,78368.0,0.012776]
[1769901514028,0.28068067,78384.0,78365.0,0.01456982]
[1769901514230,0.28068067,78380.0,78354.0,0.012778]
[1769901514432,0.28068067,78378.0,78356.0,0.012778]
[1769901514628,0.28068067,78378.0,78360.0,0.12759659]
[1769901514833,0.28068067,78378.0,78356.0,0.29542083]
[1769901515035,0.28068067,78384.0,78358.0,0.28264283]
[1769901515631,0.28068067,78384.0,78359.0,0.12760473]
[1769901515936,0.28068067,78384.0,78361.0,0.012777]
[1769901516136,0.28068067,78384.0,78359.0,0.14162008]
[1769901516435,0.28068067,78384.0,78359.0,0.01401535]
[1769901516644,0.28068067,78384.0,78360.0,0.12759821]
[1769901516826,0.28068067,78381.0,78360.0,0.12759821]
[1769901517031,0.28290077,78375.0,78359.0,0.01448452]
[1769901517331,0.28290077,78375.0,78355.0,0.10344]
[1769901517627,0.28290077,78374.0,78356.0,0.1275974]
[1769901518026,0.28290077,78370.0,78355.0,0.10344]
[1769901518433,0.37228,78369.0,78355.0,0.10344]
[1769901518633,0.28290077,78368.0,78355.0,0.10344]
[1769901518840,0.10344,78367.0,78347.0,0.012779]
[1769901519138,0.28290077,78366.0,78346.0,0.10344]
[1769901519534,0.28290077,78366.0,78347.0,0.12761287]
[1769901519936,0.10344,78367.0,78347.0,0.40632793]
[1769901520130,0.10344,78367.0,78350.0,0.27871506]
[1769901520728,0.10344,78367.0,78353.0,0.012778]
[1769901520934,0.75922077,78379.0,78363.0,0.012776]
[1769901521132,0.47632,78378.0,78360.0,0.012777]
[1769901522838,0.10344,78378.0,78360.0,0.012777]
[1769901523039,0.10344,78378.0,78366.0,0.012776]
[1769901523335,0.10344,78378.0,78367.0,0.2907755]
[1769901523729,0.3734,78385.0,78367.0,0.2907755]
[1769901524537,0.012769,78408.0,78382.0,0.2907755]
[1769901524734,0.012769,78408.0,78384.0,0.2907755]
[1769901524735,0.28072908,78407.0,78384.0,0.2907755]
[1769901525039,0.28611515,78405.0,78380.0,0.116214]
[1769901525244,0.27334515,78403.0,78380.0,0.116214]
[1769901525734,0.37388,78402.0,78383.0,0.3035485]
[1769901525936,0.37388,78402.0,78385.0,0.012773]
[1769901526138,0.37388,78402.0,78388.0,0.012772]
[1769901526532,0.37388,78402.0,78384.0,0.013773]
[1769901526737,0.37388,78402.0,78384.0,0.3035485]
[1769901528338,0.10344,78416.0,78393.0,0.2907755]
[1769901528539,0.27334515,78417.0,78394.0,0.2907755]
[1769901528740,0.47784,78420.0,78394.0,0.2907755]
[1769901528944,0.47784,78420.0,78399.0,0.2907755]
[1769901529136,0.012764,78442.0,78405.0,0.2907755]
[1769901529137,0.10344,78438.0,78405.0,0.2907755]
[1769901529342,0.10344,78438.0,78419.0,0.012767]
[1769901529543,0.10344,78438.0,78419.0,0.02665531]
[1769901530548,0.10344,78438.0,78422.0,0.012767]
[1769901530746,0.10344,78438.0,78425.0,0.012766]
[1769901530946,0.10344,78438.0,78422.0,0.012767]
[1769901534249,0.28610815,78449.0,78422.0,0.3035425]
[1769901534855,0.27334515,78449.0,78427.0,0.2907755]
[1769901535152,0.27334515,78449.0,78431.0,0.012765]
[1769901535751,0.27334515,78449.0,78428.0,0.492846]
[1769901535951,0.27334515,78449.0,78428.0,0.48008]
[1769901536251,0.27192425,78449.0,78428.0,0.48008]
[1769901536453,0.28468725,78449.0,78428.0,0.48008]
[1769901536651,0.28468725,78449.0,78424.0,0.012767]
[1769901536955,0.28468725,78449.0,78425.0,0.43964]
[1769901537256,0.28468725,78449.0,78424.0,0.012767]
[1769901537456,0.28468725,78449.0,78426.0,0.12748841]
[1769901537858,0.28468725,78449.0,78424.0,0.012767]
[1769901538150,0.27334515,78446.0,78425.0,0.12749003]
[1769901538357,0.27334515,78442.0,78423.0,0.1034]
[1769901538652,0.27334515,78440.0,78423.0,0.1034]
[1769901539454,0.27334515,78440.0,78419.0,0.01388831]
[1769901539653,0.27334515,78440.0,78420.0,0.1034]
[1769901540955,0.27334515,78440.0,78418.0,0.012768]
[1769901541148,0.27334515,78440.0,78418.0,0.02725025]
[1769901541353,0.27334515,78430.0,78411.0,0.116169]
[1769901542260,0.27334515,78427.0,78404.0,0.1034]
[1769901542459,0.27334515,78427.0,78407.0,0.012769]
[1769901542663,0.27334515,78427.0,78404.0,0.1034]
[1769901542961,0.28611115,78427.0,78404.0,0.1034]
[1769901543352,0.27334515,78424.0,78404.0,0.11617]
[1769901544056,0.27334515,78422.0,78404.0,0.1034]
[1769901544859,0.1034,78431.0,78411.0,0.012769]
[1769901545162,0.1034,78431.0,78419.0,0.012767]
[1769901545364,0.1034,78431.0,78416.0,0.012768]
[1769901547962,0.1034,78431.0,78418.0,0.012768]
[1769901548156,0.29113427,78441.0,78425.0,0.012766]
[1769901548559,0.10336,78444.0,78425.0,0.012766]
[1769901549563,0.29113427,78443.0,78422.0,0.012767]
[1769901549761,0.29113427,78443.0,78417.0,0.012768]
[1769901550460,0.29113427,78441.0,78414.0,0.492808]
[1769901550858,0.29113427,78441.0,78415.0,0.12749816]
[1769901551258,0.29113427,78439.0,78415.0,0.12749816]
[1769901552466,0.29113427,78439.0,78416.0,0.012768]
[1769901552965,0.012764,78440.0,78414.0,0.48004]
[1769901552966,0.29113427,78462.0,78431.0,0.29587253]
[1769901553267,0.30389627,78455.0,78431.0,0.29587253]
[1769901553464,0.30389627,78455.0,78421.0,0.29587253]
[1769901553963,0.30389627,78455.0,78424.0,0.29587253]
[1769901554264,0.29113427,78455.0,78426.0,0.29587253]
[1769901554867,0.29113427,78462.0,78435.0,0.29587253]
[1769901555259,0.29113427,78462.0,78436.0,0.29587253]
[1769901555459,0.29113427,78462.0,78437.0,0.012764]
[1769901555764,0.29113427,78462.0,78435.0,0.10336]
[1769901555966,0.29113427,78457.0,78435.0,0.10336]
[1769901556165,0.29113427,78455.0,78435.0,0.10336]
[1769901556362,0.29113427,78453.0,78435.0,0.10336]
[1769901556866,0.10336,78454.0,78439.0,0.012764]
[1769901557763,0.10336,78454.0,78435.0,0.116125]
[1769901558065,0.39449427,78454.0,78435.0,0.116125]